Cogmind - Beta 10.2 @@@ ROGUE MODE // 2021.07.10 @ 21:54:29 Player: Demise Result: Destroyed by 8R-AWN with 8R-AWN's Boregun Performance ------------- Evolutions (1) 500 Regions Visited (5) 1000 Robots Destroyed (88) 440 Value Destroyed (1773) 1773 Prototype IDs (40) 800 Alien Tech Used (0) 0 Bonus (325) 325 TOTAL SCORE: 4838 Bonus ------- High Alert Combat Kills 33 Aligned with FarCom 300 Friendly Fire -8 Cogmind --------- Core Integrity 0/400 Matter 237/300 Energy 100/100 System Corruption 0% Temperature Cool (0) Movement Core (350) Ox6 Location -9/Exiles Parts ------- > --- POWER (1) -------- (None) > --- PROPULSION (2) --- (None) > --- UTILITY (4) ------ Large Storage Unit Weapon Shielding > --- WEAPON (2) ------- Heavy Hammer > --- INVENTORY (10) --- Large Storage Unit High-capacity Battery (400) EM Pulse Gun Improved Assault Rifle Improved Assault Rifle Improved Assault Rifle EMP Blaster Grenade Launcher Grenade Launcher Peak State ------------ > --- POWER ------------ Light Nuclear Core > --- PROPULSION ------- Improved Treads Improved Treads > --- UTILITY ---------- Large Storage Unit High-capacity Storage Unit High-capacity Storage Unit Improved Light Armor Plating > --- WEAPON ----------- Improved Assault Rifle Improved Assault Rifle > --- INVENTORY -------- Light Nuclear Core Large Storage Unit High-capacity Matter Pod High-capacity Matter Pod Experimental Sensor Array Signal Interpreter Improved Targeting Computer Weapon Shielding Hacking Suite Hacking Suite Long-range Tractor Beam EM Pulse Gun Improved Assault Rifle Improved Assault Rifle Improved Assault Rifle Improved Assault Rifle Improved Assault Rifle Improved Assault Rifle Improved Assault Rifle Grenade Launcher Grenade Launcher Datajack Mining Laser Heavy Hammer Heavy Hammer [Rating: 24] Favorites ----------- Power Light Nuclear Core Engine Ion Engine Power Core Light Nuclear Core Propulsion Improved Treads Treads Improved Treads Utility High-capacity Storage Unit Device Trap Extractor Storage High-capacity Storage Unit Processor Signal Interpreter Protection Improved Light Armor Plating Weapon Improved Assault Rifle Energy Gun Medium Laser Ballistic Gun Improved Assault Rifle Launcher Grenade Launcher Special Weapon Mining Laser Impact Weapon Heavy Hammer Special Melee Weapon Datajack Build | -11 -10 -10 -9 -9 -9 ------- Run | Scr Mat Min Mat Min Exi Slots Evolved 2 | . . . 2 . . Power . | . . . . . . Propulsion . | . . . . . . Utility 2 | . . . 2 . . Weapon . | . . . . . . Parts Attached 95 | 10 30 11 30 2 12 Power 13 | 3 7 1 2 . . Engine 11 | 3 7 1 . . . Core 2 | . . . 2 . . Reactor . | . . . . . . Propulsion 10 | 2 4 2 2 . . Treads 10 | 2 4 2 2 . . Leg . | . . . . . . Wheel . | . . . . . . Hover . | . . . . . . Flight . | . . . . . . Utility 26 | 2 6 1 9 . 8 Device 1 | . . . 1 . . Storage 13 | 2 3 1 2 . 5 Processor 3 | . 1 . 2 . . Hackware . | . . . . . . Protection 9 | . 2 . 4 . 3 Artifact . | . . . . . . Weapon 46 | 3 13 7 17 2 4 Energy Gun 3 | 1 . 2 . . . Energy Cannon . | . . . . . . Ballistic Gun 26 | 2 10 3 10 1 . Ballistic Cannon . | . . . . . . Launcher 8 | . 1 1 4 1 1 Special Weapon 4 | . 2 1 1 . . Impact Weapon 3 | . . . 1 . 2 Slashing Weapon . | . . . . . . Piercing Weapon . | . . . . . . Special Melee Weapon 2 | . . . 1 . 1 Unidentified Prototypes 1 | . . . 1 . . Parts Lost 11 | . 2 3 . . 6 Power 2 | . . 1 . . 1 Propulsion 4 | . . 2 . . 2 Utility 2 | . . . . . 2 Weapon 3 | . 2 . . . 1 Highest Loss Streak 6 | . 2 3 . . 6 Average Slot Usage (%) 98 | . 98 99 98 100 98 Engine 6 | . 14 13 . . . Core 5 | . . . 11 11 10 Treads 24 | . 27 27 21 22 21 Storage 29 | . 23 28 32 44 36 Processor 1 | . 1 . 1 . . Protection 4 | . 1 . 8 . 7 Ballistic Gun 22 | . 26 27 20 21 10 Special Melee Weapon 1 | . . . . . 6 Naked Turns . | . . . . . . Heaviest Build 121 | 16 61 77 107 107 121 Greatest Support 46 | 40 46 46 46 46 46 Greatest Overweight (x) 6 | 1 2 3 2 2 6 Average Overweight (x) 1 | . . 1 1 2 1 Largest Inventory Capacity 34 | 8 18 20 32 32 34 Average Capacity 21 | 5 14 19 25 32 26 Most Carried 34 | 6 18 20 29 29 34 Average Carried 19 | 4 13 18 24 29 23 Final Capacity 32 | 8 18 20 32 32 10 Final Carried 29 | 6 17 18 29 29 9 Class Distribution -------------------- 60% | Hauler-Mutant 38% | Mutant Dominant Class ---------------- Mutant | -10/Materials Hauler-Mutant | -10/Mines Hauler-Mutant | -9/Materials Hauler-Mutant | -9/Mines Hauler-Mutant | -9/Exiles Resources | -11 -10 -10 -9 -9 -9 ----------- Run | Scr Mat Min Mat Min Exi Matter Collected 2586 | 485 657 396 878 13 157 Remotely . | . . . . . . Salvage Created 2934 | 227 822 131 1747 7 . Parts 213 | 27 66 6 112 2 . Haulers Intercepted 8 | . 2 . 6 . . Recyclers Shooed 2 | . . . 2 . . Parts Field Recycled . | . . . . . . Retrieved Matter . | . . . . . . Parts Self-Destructed . | . . . . . . Prevented . | . . . . . . Kills | -11 -10 -10 -9 -9 -9 ------- Run | Scr Mat Min Mat Min Exi Combat Hostiles Destroyed 58 | . 17 2 31 3 5 Guns 34 | . 17 2 15 . . AOE 24 | . . . 16 3 5 Classes Destroyed 11 | 3 6 . 1 . 1 Worker 4 | 2 . 1 1 . . Builder 2 | . 1 . 1 . . Tunneler 6 | 5 . 1 . . . Hauler 8 | . 2 . 6 . . Recycler 3 | 1 . . 2 . . Operator 4 | . 4 . . . . Watcher 8 | . 3 . 5 . . Swarmer 20 | . 6 . 11 3 . Grunt 26 | . 11 2 13 . . Sentry 7 | . . . 7 . . Assembled 5 | . . . . . 5 Best Kill Streak 7 | 6 5 2 7 3 5 Combat Bots Only 6 | . 3 2 6 3 5 Max Kills in Single Turn 2 | 1 2 1 2 1 2 Gunslinging 1 | . 1 . . . . Exploded 2 | . . . 2 1 2 Melee . | . . . . . . Uniques/NPCs Destroyed . | . . . . . . Combat | -11 -10 -10 -9 -9 -9 -------- Run | Scr Mat Min Mat Min Exi Damage Taken 3299 | . 811 790 799 126 773 Core 565 | . 96 67 160 23 219 Absorbed by Shields . | . . . . . . Core Remaining (%) 67 | 100 . 34 . . . Volleys Fired 261 | 14 116 21 98 6 6 Largest 2 | 2 2 2 2 1 1 Hottest 100 | 40 100 100 100 30 30 Shots Fired 467 | 28 220 33 174 6 6 Gun 426 | 28 211 28 158 . 1 Cannon . | . . . . . . Launcher 27 | . 1 1 14 6 5 Special 14 | . 8 4 2 . . Kinetic 422 | 28 211 24 158 . 1 Thermal 14 | . 8 4 2 . . Explosive 16 | . 1 1 3 6 5 Electromagnetic 15 | . . 4 11 . . Robot Hit Streak 29 | 11 11 9 29 1 3 Robot Miss Streak 5 | 1 5 3 2 1 1 Penetration Max . | . . . . . . Secondary Targets 2 | . 1 1 . . . Max Gunslinging Chain 1 | . 1 1 . . . Shots Hit Robots 327 | 17 137 14 137 1 21 Core Hits 143 | 9 49 7 64 3 11 Critical Hits 2 | . 1 1 . . . Critical Kills . | . . . . . . Critical Parts Destroyed 2 | . 1 1 . . . Melee Attacks 29 | . . . 5 . 24 Impact 24 | . . . 4 . 20 Slashing . | . . . . . . Piercing . | . . . . . . Sneak Attacks 5 | . . . 1 . 4 Combat Hostiles . | . . . . . . Follow-up Attacks 2 | . . . . . 2 Damage Inflicted 5292 | 192 1238 277 2770 166 649 Guns 3675 | 192 1238 277 1968 . . Cannons . | . . . . . . Explosions 1279 | . . . 802 166 311 Melee 338 | . . . . . 338 Ramming . | . . . . . . Kinetic 3675 | 192 1238 277 1968 . . Thermal 252 | . . . 252 . . Explosive 676 | . . . 199 166 311 Electromagnetic 351 | . . . 351 . . Impact 338 | . . . . . 338 Slashing . | . . . . . . Piercing . | . . . . . . Highest Corruption . | . . . . . . Average Corruption . | . . . . . . Corruption Purged . | . . . . . . Overload Shots . | . . . . . . Overflow Damage 100 | . . . 50 6 44 Projectiles . | . . . . . . Explosions 79 | . . . 50 6 23 Melee 21 | . . . . . 21 Knockbacks 3 | . . . . . 3 Impact 3 | . . . . . 3 Kinetic . | . . . . . . Secondary . | . . . . . . Self-Inflicted Damage . | . . . . . . Shots . | . . . . . . Rammed . | . . . . . . Targets Rammed . | . . . . . . Kicked . | . . . . . . Crushed . | . . . . . . Highest Temperature 96 | . 80 96 48 . . Average Temperature 14 | . 14 31 5 . . Received Heat Transfer 696 | . 330 69 297 . . Siege Activations . | . . . . . . Robots Corrupted . | . . . . . . Combat Hostiles . | . . . . . . Parts Fried 1 | . . . 1 . . Impact Corruptions 3 | . . . . . 3 Robots Melted . | . . . . . . Combat Hostiles . | . . . . . . Parts Melted . | . . . . . . Heat Transferred 250 | . . . 250 . . Parts Sabotaged . | . . . . . . Parts Stolen . | . . . . . . Parts Stripped . | . . . . . . Power Chain Reactions 7 | . . . 7 . . Missiles Intercepted . | . . . . . . Alert | -11 -10 -10 -9 -9 -9 ------- Run | Scr Mat Min Mat Min Exi Peak Influence 429 | 40 326 70 429 223 . Initial 153 | . 26 21 . 153 . Average 149 | 24 98 27 244 196 . Maximum Alert Level 2 | . 1 . 2 1 . Low Security (%) 71 | 100 93 100 43 29 . Level 1 14 | . 6 . 23 70 . Level 2 14 | . . . 33 . . Level 3 . | . . . . . . Level 4 . | . . . . . . Level 5 . | . . . . . . High Security . | . . . . . . Max Security . | . . . . . . Squads Dispatched 7 | . 4 . 3 . . Investigation 4 | . 1 . 3 . . Extermination . | . . . . . . Reinforcement 3 | . 3 . . . . Assault . | . . . . . . Garrison . | . . . . . . Intercept . | . . . . . . Construction Impeded . | . . . . . . Haulers Reinforced . | . . . . . . Stealth | -11 -10 -10 -9 -9 -9 --------- Run | Scr Mat Min Mat Min Exi Distress Signals 5 | . 2 . 3 . . Communications Jammed . | . . . . . . Distress Signals . | . . . . . . Times Spotted 95 | . 39 4 42 4 6 Peak Tracking Total 9 | . 6 2 7 4 9 Tactical Retreats 2 | . 2 . . . . Traps | -11 -10 -10 -9 -9 -9 ------- Run | Scr Mat Min Mat Min Exi Traps Triggered 4 | . 2 . 2 . . Indirectly 1 | . . . 1 . . Trap Hack Attempts 40 | . . . 40 . . Triggered . | . . . . . . Disarmed . | . . . . . . Reprogrammed 4 | . . . 4 . . Reused 4 | . . . . . 4 Traps Extracted 4 | . . . 4 . . Installed 4 | . . . . . 4 Triggered . | . . . . . . Exploded 2 | . . . . . 2 Machines | -11 -10 -10 -9 -9 -9 ---------- Run | Scr Mat Min Mat Min Exi Machines Disabled 8 | . . 2 2 . 4 Max in Single Turn 2 | . . 1 2 . 2 Machines Sabotaged . | . . . . . . Garrisons Compromised . | . . . . . . Overloaded Fab Kills . | . . . . . . Fab Network Shutdowns . | . . . . . . Hacking | -11 -10 -10 -9 -9 -9 --------- Run | Scr Mat Min Mat Min Exi Machines Accessed 24 | . 8 . 14 . 2 Terminals 15 | . 5 . 10 . . Fabricators . | . . . . . . Repair Stations 3 | . 1 . 2 . . Recycling Units 2 | . 2 . . . . Scanalyzers 2 | . . . 2 . . Garrison Access . | . . . . . . Total Hacks 78 | . 37 . 39 . 2 Successful 48 | . 19 . 27 . 2 Failed 28 | . 17 . 11 . . Catastrophic 1 | . . . 1 . . Database Lockouts 2 | . 1 . 1 . . Manual 56 | . 30 . 25 . 1 Terminals 54 | . 25 . 29 . . Fabricators . | . . . . . . Repair Stations 9 | . 3 . 6 . . Recycling Units 9 | . 9 . . . . Scanalyzers 4 | . . . 4 . . Garrison Access . | . . . . . . Terminal Hacks 15 | . 6 . 7 . 2 Record 1 | . . . . . 1 Part Schematic 2 | . 2 . . . . Robot Analysis 5 | . 2 . 3 . . Prototype ID Bank 1 | . . . 1 . . Terminal Index 1 | . . . 1 . . Repair Station Index 1 | . . . 1 . . Locate Traps 1 | . 1 . . . . Hauler Manifests 1 | . . . 1 . . Zone Layout 1 | . 1 . . . . EX-Prototype ID Bank 1 | . . . . . 1 Fabricator Hacks . | . . . . . . Repair Station Hacks 6 | . 2 . 4 . . Scan Component 3 | . 1 . 2 . . Repair 3 | . 1 . 2 . . Recycling Unit Hacks 2 | . 2 . . . . Retrieve Components 2 | . 2 . . . . Scanalyzer 4 | . . . 4 . . Insert Component 2 | . . . 2 . . Analyze 2 | . . . 2 . . Garrison Access Hacks . | . . . . . . Unauthorized Hacks 21 | . 9 . 12 . . Terminals 16 | . 5 . 11 . . Track 2 | . . . 2 . . Assimilate 4 | . 2 . 2 . . Botnet 7 | . 2 . 5 . . Operators 3 | . 1 . 2 . . Fabricators . | . . . . . . Repair Stations 1 | . . . 1 . . Mechanics 1 | . . . 1 . . Recycling Units 4 | . 4 . . . . Reject 1 | . 1 . . . . Recyclers 1 | . 1 . . . . Mask 2 | . 2 . . . . Scanalyzers . | . . . . . . Garrison Access . | . . . . . . Data Cores Recovered . | . . . . . . Used . | . . . . . . Hacking Detections 17 | . 7 . 10 . . Full Trace Events 4 | . 2 . 2 . . Feedback Events . | . . . . . . Feedback Blocked . | . . . . . . Robot Schematics Acquired . | . . . . . . Robots Built . | . . . . . . Matter . | . . . . . . Time . | . . . . . . Total Robot Build Rating . | . . . . . . Part Schematics Acquired 4 | . 2 . 2 . . Parts Built . | . . . . . . Matter . | . . . . . . Time . | . . . . . . Total Part Build Rating . | . . . . . . Parts Repaired 3 | . 1 . 2 . . Time 96 | . 32 . 64 . . Parts Recycled . | . . . . . . Recycled Matter . | . . . . . . Retrieved Matter . | . . . . . . Retrieved Components 19 | . 19 . . . . Parts Scanalyzed 2 | . . . 2 . . Part Schematics Acquired 2 | . . . 2 . . Parts Damaged . | . . . . . . Bothacking | -11 -10 -10 -9 -9 -9 ------------ Run | Scr Mat Min Mat Min Exi Used RIF Installer . | . . . . . . Robots Hacked 5 | . . . 1 . 4 Non-combat 4 | . . . 1 . 3 Combat 1 | . . . . . 1 Robot Hacks Applied 5 | . . . 1 . 4 parse_system 4 | . . . . . 4 find_recycling 1 | . . . 1 . . Relay Couplers Released . | . . . . . . Robots Rewired . | . . . . . . Allies Hacked . | . . . . . . Hacks Repelled . | . . . . . . Allies | -11 -10 -10 -9 -9 -9 -------- Run | Scr Mat Min Mat Min Exi Total Allies 5 | . 2 1 2 . . Largest Group 2 | . 1 1 2 2 1 Highest-Rated Group 31 | . 10 31 20 20 10 Highest-Rated Ally 31 | . 10 31 10 10 10 Total Orders 5 | . . . 4 . 1 STAY 3 | . . . 2 . 1 FOLLOW 2 | . . . 2 . . Ally Attacks 7 | . . 1 . . 6 Total Damage 362 | . . 21 . . 341 Kills . | . . . . . . Allies Corrupted . | . . . . . . Allies Melted . | . . . . . . Turrets Deployed 1 | . . . . . 1 Intel | -11 -10 -10 -9 -9 -9 ------- Run | Scr Mat Min Mat Min Exi Robot Analysis Total 5 | . 2 . 3 . . Derelict Logs Recovered 2 | . . 2 . . . Drone Launches . | . . . . . . Drone Recoveries . | . . . . . . Exploration | -11 -10 -10 -9 -9 -9 ------------- Run | Scr Mat Min Mat Min Exi Turns Passed 7935 | 175 2294 1220 2923 223 1100 Spaces Moved 3636 | 82 1088 622 1253 98 493 Core 16 | 15 . . . . 1 Treads 3620 | 67 1088 622 1253 98 492 Legs . | . . . . . . Wheels . | . . . . . . Hover . | . . . . . . Flight . | . . . . . . Fastest Speed 50 | 50 160 180 180 200 160 Average Speed 182 | 141 169 180 191 200 194 Slowest Speed 350 | 160 200 220 200 200 350 Overloaded Moves . | . . . . . . Propulsion Burnouts . | . . . . . . Robots Hopped . | . . . . . . Cave-ins Triggered . | . . . . . . Exploration Rate (%) 62 | 3 99 98 91 17 69 Regions Visited 5 Branch Regions 3 Pre-discovered Areas 3 | . . 2 . . 1 Known Exits Taken 3 | . 1 1 1 . . Unknown Exits Taken 2 | 1 . . . 1 . Scrap Searched 4 | . . 3 . 1 . Spaces Dug 16 | . 11 1 4 . . Terrain Destroyed 129 | . 12 12 60 27 18 Melee 3 | . . . 3 . . Projectile 9 | . 3 4 2 . . AOE 117 | . 9 8 55 27 18 Terrain Rammed . | . . . . . . Walls Destroyed . | . . . . . . Machines Disabled . | . . . . . . Actions | -11 -10 -10 -9 -9 -9 --------- Run | Scr Mat Min Mat Min Exi Total 4465 | 115 1349 686 1594 119 602 Wait 240 | . 48 24 133 14 21 Move 3631 | 81 1087 621 1252 97 493 Hop . | . . . . . . Pick Up 74 | 8 32 6 19 . 9 Fast Attach 20 | 5 8 . 7 . . Attach 21 | 3 4 3 7 . 4 Detach 13 | 1 2 . 8 . 2 Swap 54 | 2 18 8 16 2 8 Drop 80 | 1 34 3 9 . 33 Fire 261 | 14 116 21 98 6 6 Melee 27 | . . . 5 . 22 Ram . | . . . . . . Kick . | . . . . . . Crush . | . . . . . . Escape Stasis . | . . . . . . Rewire . | . . . . . . Trap 44 | . . . 40 . 4 Miscellaneous . | . . . . . . Route ------- -11/Scrapyard -10/Materials (discovered 4 exits: *Mat x3 / *Min) -10/Mines (discovered 2 exits: *Mat x2) -9/Materials (discovered 6 exits: *Mat x2 / *Min x2 / *Sto x2) -9/Mines -9/Exiles (discovered 2 exits: [*Min x2]) History --------- Turn | Location | Event 12 | -11/Scrapyard | Discovered new exit (range 15) 176 | -11/Scrapyard | Entered Materials 310 | -10/Materials | Build established: Mutant 565 | -10/Materials | Discovered new exit (range 14) 813 | -10/Materials | Discovered new exit (range 16) 1339 | -10/Materials | Discovered new exit (range 15) 1536 | -10/Materials | Repaired Imp. Treads? 1658 | -10/Materials | Central database locked down 1981 | -10/Materials | Discovered new exit (range 5) 1988 | -10/Materials | Identified exit to Materials 2130 | -10/Materials | Identified exit to Mines 2470 | -10/Materials | Entered Mines 2486 | -10/Mines | Assembled infested the area 2491 | -10/Mines | Assisted by a Guerilla fighting off Assembled 2645 | -10/Mines | Learned Materials security intel 2821 | -10/Mines | Found a damaged Exp. Sensor Array with a note attached 2824 | -10/Mines | Found Prototype Device 2899 | -10/Mines | Discovered exit to Materials (range 16) 2922 | -10/Mines | Escorted by a lone wolf Derelict 2942 | -10/Mines | Learned location of Storage (-9) 3061 | -10/Mines | Build established: Hauler-Mutant 3231 | -10/Mines | Core integrity fell below 50% 3259 | -10/Mines | Lost 3 parts (1p2n) 3297 | -10/Mines | Discovered exit to Materials (range 11) 3690 | -10/Mines | Entered Materials 3690 | -9/Materials | Evolved 2 slots: Utility x2 3948 | -9/Materials | Discovered new exit (range 16) 4093 | -9/Materials | Repaired Imp. Treads 4126 | -9/Materials | Repaired Imp. Treads 4360 | -9/Materials | Discovered new exit (range 9) 4375 | -9/Materials | Identified exit to Materials 4512 | -9/Materials | Identified exit to Storage 5276 | -9/Materials | Discovered new exit (range 7) 5296 | -9/Materials | Discovered exit to Storage (range 16) 5472 | -9/Materials | Identified exit to Mines 5768 | -9/Materials | Discovered exit to Mines (range 9) 5831 | -9/Materials | Identified Exp. Sensor Array 6144 | -9/Materials | Central database locked down 6365 | -9/Materials | Discovered exit to Materials (range 16) 6613 | -9/Materials | Entered Mines 6613 | -9/Mines | Accompanied by 2 allies 6730 | -9/Mines | Deemed a non-threat by the Exiles lab entrance 6730 | -9/Mines | Discovered new exit (range 5) 6836 | -9/Mines | Entered Exiles 6836 | -9/Exiles | Accompanied by 1 ally 6868 | -9/Exiles | Discovered new exit (range 15) 6890 | -9/Exiles | Met 8R-AWN 7029 | -9/Exiles | Met EX-HEX 7161 | -9/Exiles | Met EX-DEC 7217 | -9/Exiles | Learned location of Zion (-6) 7251 | -9/Exiles | Met EX-BIN 7281 | -9/Exiles | Aligned with FarCom system 7283 | -9/Exiles | Given EX-Vault access code 7331 | -9/Exiles | Opened EX-Vault 7343 | -9/Exiles | Found Deploy-a-Sentry 7356 | -9/Exiles | Found Latent Energy Streamer 7397 | -9/Exiles | Warned to stay clear of 0b10 Research branches 7560 | -9/Exiles | Discovered new exit (range 12) 7788 | -9/Exiles | Attacked by the Exiles 7871 | -9/Exiles | Build established: Mutant 7882 | -9/Exiles | Core integrity fell below 50% 7923 | -9/Exiles | Core integrity fell below 20% 7926 | -9/Exiles | DAS Turret deployed 7936 | -9/Exiles | Destroyed by 8R-AWN with 8R-AWN's Boregun Last Messages --------------- 07919_ Imp. Light Armor Plating destroyed. 07922_ Penetrated by HV Slug. 07924_ HV Slug penetrates Wall. 07924_ HV Slug penetrates Earth. 07924_ Penetrated by HV Slug. 07924_ HV Slug penetrates Wall. 07924_ Dropped Deploy-a-Sentry. 07926_ DAS Turret deployed. 07928_ Penetrated by HV Slug. 07928_ HV Slug penetrates Wall. 07928_ Penetrated by HV Slug. 07928_ HV Slug penetrates Wall. 07931_ Destroyed Exp. Targeting Computer. 07931_ 8R-AWN system corrupted by crushing effect. 07931_ Penetrated by HV Slug. 07931_ HV Slug penetrates Wall. 07931_ HV Slug penetrates Machine. 07936_ Penetrated by HV Slug. 07936_ HV Slug penetrates Wall. 07936_ Penetrated by HV Slug. Map ----- +----------------------------------------------------+ | ?????????????????????????????????????????????????? | | ?????????????????????????????????????????????????? | | ?????????????????????????????????????????????????? | | ?????????????????????????????????????????????????? | | ?????????????????????????????????????????????????? | | ?????????????????????????????????????????????????? | | ?????????????????????????????????????????????????? | | ?????????????????????????????????????????????????? | | ?????????????????????????????????????????????????? | | ?????????????????????????????????????????????????? | | ?????????????????????????????????????????????????? | | ?????????????????????????????????????????????????? | | ?????????????????????????????????????????????????? | | ????????????????????????????????????????????????## | | ????????????????????????????????????????????????"" | | ?#####?????????????????????????????????????????""" | | ## ##???????????????????????????????????????#""X | | # ! #???????????????????????????????????????#" | | #![<[ #???????????????????????????????????????#" | | #[!!![###?????????????????????????????????????#""" | | #!!/!! #??????????????????????????????????????#"# | | #]!*![ ##????????????????????????????????????????? | | ##|![ #?????????????????????????????????????????? | | ?# ##????????????????????????????????????????? | | ?## #??????????#########?????????????????????? | | ??# #######????# ;!!!@g#?????????????????????? | | ??# #""##???### t##????????????????????? | | ??## #?????# ; ????????????????????? | | ???##" ##???## # #??????????##???????? | | ???#"" ##### ###?????????? """????? | | ???#### ## ;????????????" """#???? | | ??????## #"" #;;????????????" ????? | | ???????#"## # ##??????????"" ????? | | ???????####### ###?????????"" "#???? | | ?????????????### #????????? ""????? | | ???????########" #??????????" "?????? | | ???????# """"" #??????????# #?????? | | ???????#! "## #####???### ###?### | | ???????#! "## # "#####X# #"###"" | | ???????#! ### # """""" | | ???????# !""" ""###?## "# % "" """ | | ???????##########????##### " | | ?????????????????????????#;; | | ?????????????????????????? ### | | ?????????????????????????? ??## | | ?????????????????????????? ???## | | ?????????????????????????? ????##" | | ?????????????????????????? ?????#""" | | ???????????????????????????????##" | | ???????????????????????????????#"" "" | +----------------------------------------------------+ Best States ------------- Heat Dissipation 28 Energy Generation 14 Energy Capacity 265 Matter Stores 300 Matter Capacity 300 Sight Range 16 Terrain Scan Density 10 Armor Coverage 300 Propulsion Shielding 33 Weapon Shielding 33 Evasion (%) 50 Recoil Reduction 2 Item Schematics ----------------- Hcp. Storage Unit | -10/Materials | Hacked Med. Storage Unit | -10/Materials | Hacked Hacking Suite | -9/Materials | Scanalyzed Exp. Sensor Array | -9/Materials | Scanalyzed Robot Schematics ------------------ None Fabricated ------------ Nothing Alien Tech Used ----------------- None Achievements -------------- None Challenges ------------ None Game ------ Seed ThrusterZioniteScythe Manual? 0 Play Time 00:49:30 Cumulative 380.9 hours Start 2021.07.10 @ 17:52:46 End 2021.07.10 @ 21:54:29 Sessions 3 Manual Loads 0 Difficulty Rogue Special Mode None Game No. 312 Rogue 312 Adventurer 0 Explorer 0 Win Type - Total 1 Types 0/0/0/1/0/0/0/0/0 Lore% 70 Gallery% 79 Achievement% 60 Wizard Run 0 Options --------- ASCII 0 Keyboard 1 Movement Numpad Keybinds 0 Fullscreen 1 Font 12/Terminus Map View 83x54 Tactical HUD 1 Map Filters NONE Filters NONE Steam 1 RUN: 0d608182-2d76-4a46-a50c-ccba4984ac45